bitfinex/quotes_SOLUSD_20251202
["timestamp","ask_amount","ask_price","bid_price","bid_amount"]
[1764686220803,0.67,132.36,132.32,16.49618844]
[1764686221004,8.93918364,132.35,132.31,7.55800691]
[1764686221211,9.60918364,132.35,132.3,0.66]
[1764686221416,9.60918364,132.35,132.19,37.82410754]
[1764686221417,8.93918364,132.33,132.28,17.1588815]
[1764686221593,8.93918364,132.3,132.26,7.56032671]
[1764686221919,8.93918364,132.27,132.22,7.56300304]
[1764686222120,8.93918364,132.28,132.23,0.66]
[1764686222412,8.93918364,132.29,132.24,8.93918364]
[1764686222617,0.67,132.3,132.23,9.22]
[1764686222916,8.93918364,132.27,132.23,8.56]
[1764686223217,8.93918364,132.26,132.22,7.56300304]
[1764686223400,17.16963937,132.27,132.22,16.50218668]
[1764686223586,8.93918364,132.3,132.25,8.93918364]
[1764686223792,8.93918364,132.29,132.24,8.93918364]
[1764686224005,8.93918364,132.29,132.23,0.66]
[1764686224203,8.93918364,132.29,132.24,8.93918364]
[1764686224410,8.93918364,132.28,132.23,9.59918364]
[1764686224721,8.93918364,132.26,132.22,7.56300304]
[1764686225097,8.93918364,132.27,132.23,0.66]
[1764686225299,8.93918364,132.26,132.21,16.50290801]
[1764686225807,8.93918364,132.26,132.21,17.16290801]
[1764686226016,27.1290263,132.28,132.22,0.66]
[1764686226506,8.93918364,132.26,132.22,0.66]
[1764686226821,7.56086496,132.26,132.2,35.41361417]
[1764686227119,8.93918364,132.25,132.2,8.22429652]
[1764686227423,8.93918364,132.24,132.2,7.56429652]
[1764686227629,9.60918364,132.25,132.2,17.16348016]
[1764686227921,8.93918364,132.3,132.24,8.93918364]
[1764686228098,8.93918364,132.26,132.22,8.54]
[1764686228297,8.93918364,132.27,132.22,17.47918364]
[1764686228493,0.67,132.29,132.23,8.93918364]
[1764686228704,8.93918364,132.3,132.26,7.56086496]
[1764686228907,16.11710116,132.33,132.27,8.93918364]
[1764686229134,17.16510297,132.35,132.3,8.93918364]
[1764686229306,8.93918364,132.36,132.31,8.93918364]
[1764686229610,16.4949071,132.35,132.29,8.93918364]
[1764686229825,7.55572346,132.35,132.31,8.93918364]
[1764686229994,8.93918364,132.33,132.28,0.66]
[1764686230203,8.93918364,132.33,132.28,9.59918364]
[1764686230416,9.60918364,132.33,132.28,0.66]
[1764686230622,0.67,132.33,132.28,0.66]
[1764686230821,9.60918364,132.33,132.29,7.55915035]
[1764686231025,8.22523006,132.36,132.29,16.49833399]
[1764686231232,8.93918364,132.35,132.3,8.93918364]
[1764686231526,0.67,132.36,132.3,8.93918364]
[1764686231692,8.93918364,132.35,132.3,8.93918364]
[1764686231898,8.93918364,132.34,132.29,17.17833399]
[1764686232092,7.55532696,132.36,132.3,9.61918364]
[1764686232093,8.93918364,132.36,132.3,9.61918364]
[1764686232297,13.7091648,132.37,132.31,8.93918364]
[1764686232500,13.7091648,132.37,132.32,8.93918364]
[1764686232705,4.10998116,132.37,132.34,8.93918364]
[1764686232918,4.10998116,132.37,132.32,8.93918364]
[1764686232919,13.7091648,132.37,132.32,8.93918364]
[1764686233122,8.93918364,132.35,132.31,8.56]
[1764686233323,8.93918364,132.35,132.3,9.61918364]
[1764686233629,9.59918364,132.35,132.3,35.39399142]
[1764686233819,4.76998116,132.37,132.3,26.45480778]
[1764686234017,13.7091648,132.37,132.32,8.93918364]
[1764686234202,4.76998116,132.37,132.32,8.93918364]
[1764686234399,13.7091648,132.37,132.32,0.68]
[1764686234604,13.7091648,132.37,132.32,9.61918364]
[1764686234806,8.93918364,132.35,132.3,8.93918364]
[1764686235007,0.66,132.36,132.29,9.61918364]
[1764686235215,8.93918364,132.35,132.3,26.45502644]
[1764686235403,8.93918364,132.36,132.31,8.93918364]
[1764686235802,13.0491648,132.37,132.32,9.61918364]
[1764686235998,4.10998116,132.37,132.35,8.93918364]
[1764686236429,1e-08,132.37,132.36,9.61918364]
[1764686236811,1e-08,132.37,132.36,25.73433625]
[1764686237212,1e-08,132.39,132.36,60.25108178]
[1764686237524,1e-08,132.39,132.38,8.93918364]
[1764686237726,1e-08,132.39,132.37,0.68]
[1764686237930,1e-08,132.39,132.36,26.44303414]
[1764686238117,1e-08,132.39,132.36,27.12303414]
[1764686238909,1e-08,132.39,132.36,7.55515261]
[1764686239230,9.59918365,132.39,132.36,26.44303414]
[1764686239633,8.93918365,132.39,132.36,26.44303414]
[1764686239820,8.93918364,132.38,132.36,26.44303414]
[1764686240009,1e-08,132.39,132.36,26.44303414]
[1764686240208,1e-08,132.39,132.36,36.06221778]
[1764686240421,1e-08,132.39,132.36,27.12303414]
[1764686240841,8.93918364,132.38,132.36,26.44303414]
[1764686241039,8.93918364,132.38,132.36,18.88788153]
[1764686241415,8.93918365,132.39,132.36,18.88788153]
[1764686241617,1e-08,132.39,132.37,9.61918364]
[1764686241839,1e-08,132.39,132.37,0.68]
[1764686242140,1e-08,132.39,132.36,27.44788153]
[1764686242441,9.59918365,132.39,132.36,18.88788153]
[1764686242616,8.93918365,132.39,132.36,18.88788153]
[1764686243310,1e-08,132.39,132.37,0.68]
[1764686243540,1e-08,132.39,132.36,27.12303414]
[1764686243748,1e-08,132.39,132.36,17.17433625]
[1764686243941,1e-08,132.39,132.37,9.61918364]
[1764686244239,1e-08,132.39,132.38,8.93918364]
[1764686244539,1e-08,132.39,132.38,9.61918364]
[1764686244727,1e-08,132.39,132.38,18.42912856]
[1764686244932,1e-08,132.39,132.38,34.73799256]
[1764686245355,1e-08,132.39,132.38,42.29200373]
[1764686245560,1e-08,132.39,132.38,25.98313973]
[1764686246428,1e-08,132.39,132.38,29.87147022]
[1764686248556,1e-08,132.39,132.38,7.55401117]
[1764686249057,5.32859506,132.39,132.38,7.55401117]
[1764686249451,5.98859506,132.39,132.38,7.55401117]
[1764686249637,5.98859506,132.39,132.36,26.44251055]
[1764686249948,5.98859505,132.38,132.36,26.44251055]
[1764686250147,5.98859505,132.38,132.36,7.55462902]
[1764686250329,1e-08,132.39,132.35,5.32859505]
[1764686250530,5.32859505,132.38,132.33,31.77762399]
[1764686250738,5.32859505,132.37,132.33,26.44902894]
[1764686250942,5.32859505,132.36,132.33,26.44902894]
[1764686251140,5.32859505,132.37,132.33,26.44902894]
[1764686251554,5.98859505,132.37,132.33,26.44902894]
[1764686251929,5.98859505,132.37,132.33,25.41460764]
[1764686252142,0.66,132.37,132.33,25.41460764]
[1764686252355,5.98859505,132.37,132.33,25.41460764]
[1764686252551,0.66,132.37,132.33,18.89216353]
[1764686252755,1e-08,132.39,132.34,5.32859505]
[1764686252941,6.01859506,132.39,132.34,5.99859505]
[1764686253142,5.32859505,132.38,132.33,24.22075858]
[1764686253338,6.01859505,132.38,132.34,5.32859505]
[1764686253542,6.01859505,132.38,132.33,19.56216353]
[1764686253740,1e-08,132.39,132.33,24.22075858]
[1764686254040,0.69,132.38,132.33,24.22075858]
[1764686254243,5.32859505,132.37,132.33,24.22075858]
[1764686254440,5.32859506,132.39,132.35,26.44503211]
[1764686254639,1e-08,132.39,132.35,26.44503211]
[1764686254845,6.01859506,132.39,132.35,26.44503211]
[1764686255339,5.32859506,132.39,132.35,26.44503211]
[1764686255544,0.69,132.38,132.35,26.44503211]
[1764686255850,6.01859506,132.39,132.35,26.44503211]
[1764686256043,6.01859505,132.38,132.35,26.44503211]
[1764686256445,0.69,132.38,132.35,26.44503211]
[1764686256648,6.01859505,132.38,132.35,26.44503211]
[1764686257037,6.01859505,132.37,132.35,26.44503211]
[1764686257237,6.01859505,132.38,132.35,26.44503211]
[1764686257457,6.01859505,132.38,132.35,7.55572346]
[1764686257639,5.32859505,132.36,132.33,7.5566833]
[1764686257960,5.32859505,132.36,132.31,12.88660275]
[1764686258156,6.01859505,132.37,132.33,5.32859505]
[1764686258659,6.01859505,132.36,132.33,7.55686541]
[1764686258861,0.69,132.36,132.33,7.55686541]
[1764686259065,0.69,132.35,132.33,7.55686541]
[1764686259269,0.69,132.35,132.3,5.32859505]
[1764686259270,0.69,132.35,132.31,18.89441128]
[1764686259475,0.69,132.35,132.31,31.78101403]
[1764686259839,5.32859505,132.36,132.3,7.55832646]
[1764686260048,6.01859505,132.38,132.33,5.32859505]
[1764686260641,5.32859506,132.39,132.35,26.44503211]
[1764686260843,6.01859506,132.39,132.35,26.44503211]
[1764686261038,1e-08,132.39,132.37,5.32859505]
[1764686261237,1e-08,132.39,132.38,5.32859505]
[1764686261762,1e-08,132.39,132.38,8.54]
[1764686262062,1e-08,132.39,132.38,13.86859505]
[1764686262262,1e-08,132.39,132.38,9.21]
[1764686262449,1e-08,132.39,132.38,14.53859505]
[1764686262842,1e-08,132.39,132.38,22.09260622]
[1764686263048,1e-08,132.39,132.38,21.42260622]
[1764686263342,1e-08,132.39,132.38,13.55260622]
[1764686263667,1e-08,132.39,132.38,7.55401117]
[1764686264866,0.70000001,132.39,132.37,7.55458185]
[1764686265547,1e-08,132.39,132.37,7.55458185]
[1764686265751,0.70000001,132.39,132.37,7.55458185]
[1764686266180,5.32859505,132.38,132.36,26.44163313]
[1764686266655,0.70000001,132.39,132.35,7.55549783]
[1764686266656,6.02859505,132.37,132.35,7.55549783]
[1764686267344,0.7,132.37,132.35,7.55549783]
[1764686267536,6.02859506,132.39,132.35,26.44480648]
[1764686268065,5.32859506,132.39,132.35,26.44480648]
[1764686268361,0.7,132.38,132.35,26.44480648]
[1764686268570,6.02859505,132.38,132.35,18.88930865]
[1764686268873,5.32859505,132.36,132.35,18.88930865]
[1764686269162,0.7,132.37,132.35,18.88930865]
[1764686269367,1e-08,132.39,132.34,7.55629439]
[1764686269368,5.32859505,132.36,132.34,7.55629439]
[1764686269560,5.32859505,132.35,132.34,7.55629439]
[1764686269759,5.32859505,132.35,132.3,7.55820734]
[1764686269957,5.32859505,132.31,132.24,0.67]
[1764686270266,25.11880892,132.36,132.24,0.67]
[1764686270267,6.02859505,132.3,132.25,26.46502835]
[1764686270648,0.7,132.29,132.22,16.10304856]
[1764686270952,5.32859505,132.28,132.24,5.32859505]
[1764686271148,6.02859505,132.29,132.25,5.32859505]
[1764686271348,6.02859505,132.29,132.24,5.32859505]
[1764686271549,6.02859505,132.28,132.23,5.99859505]
[1764686271944,0.7,132.27,132.23,5.32859505]
[1764686272272,0.7,132.27,132.23,5.99859505]
[1764686272475,6.02859505,132.29,132.24,5.32859505]
[1764686272645,5.32859505,132.29,132.25,7.56143667]
[1764686272845,6.02859505,132.29,132.25,7.56143667]
[1764686273045,6.02859505,132.29,132.25,26.46502835]
[1764686273371,5.32859505,132.3,132.25,32.4636234]
[1764686273767,6.02859505,132.29,132.25,26.46502835]
[1764686273964,5.32859505,132.28,132.25,7.56143667]
[1764686274178,6.02859505,132.28,132.25,7.56143667]
[1764686274359,0.7,132.28,132.25,7.56143667]
[1764686274673,0.7,132.28,132.25,26.46502835]
[1764686275384,0.7,132.33,132.27,5.32859505]
[1764686275670,5.32859505,132.31,132.27,5.32859505]
[1764686275866,5.32859505,132.32,132.26,0.67]
[1764686276066,5.32859505,132.32,132.27,5.32859505]
[1764686276455,5.02859505,132.33,132.29,5.32859505]
[1764686276658,7.55554071,132.36,132.29,0.67]
[1764686276859,14.13853997,132.4,132.31,7.5580077]
[1764686276860,5.32859505,132.34,132.31,7.5580077]
[1764686277347,5.32859505,132.35,132.3,12.88694374]
[1764686277767,5.32859505,132.35,132.3,13.55694374]
[1764686277967,5.32859505,132.35,132.3,31.7833912]
[1764686278374,5.32859505,132.34,132.3,32.4533912]
[1764686278877,5.32859505,132.32,132.29,7.55904839]
[1764686279060,0.6,132.33,132.26,0.67]
[1764686279061,5.32859505,132.31,132.26,41.00119461]
[1764686279262,5.32859505,132.32,132.27,5.32859505]
[1764686279670,5.32859505,132.32,132.27,5.99859505]
[1764686279870,5.32859505,132.31,132.27,0.67]
[1764686280176,5.32859505,132.31,132.28,7.5597218]
[1764686280549,5.32859505,132.32,132.28,7.5597218]
[1764686280846,5.32859505,132.3,132.28,7.5597218]
[1764686281047,5.32859505,132.29,132.28,7.5597218]
[1764686281254,13.86859505,132.29,132.23,7.56258035]
[1764686281466,5.32859505,132.24,132.2,26.47403525]
[1764686281662,5.32859505,132.23,132.2,26.47403525]
[1764686281974,5.32859505,132.24,132.2,26.47403525]
[1764686282183,5.32859505,132.24,132.19,7.764672]
[1764686282184,5.32859505,132.21,132.19,7.764672]
[1764686282473,5.32859505,132.2,132.19,7.764672]
[1764686282967,5.32859505,132.2,132.19,0.2]
[1764686283453,0.6,132.23,132.19,0.2]
[1764686283780,5.32859505,132.22,132.19,7.76441341]
[1764686283979,5.32859505,132.22,132.19,8.43441341]
[1764686284178,5.32859505,132.23,132.19,8.43441341]
[1764686284368,0.6,132.3,132.22,5.32859505]
[1764686284678,0.6,132.3,132.2,0.67]
[1764686284679,5.32859505,132.25,132.21,8.54]
[1764686284875,0.6,132.29,132.2,5.99859505]
[1764686285082,5.32859505,132.25,132.2,0.67]
[1764686285389,5.32859505,132.23,132.21,7.56372437]
[1764686285553,5.32859505,132.24,132.21,7.56372437]
[1764686285753,5.32859505,132.22,132.21,7.56372437]
[1764686285976,5.32859505,132.22,132.19,7.7646093]
[1764686286164,0.6,132.22,132.19,7.7646093]
[1764686286361,5.32859505,132.2,132.19,0.2]
[1764686286783,5.92859505,132.2,132.19,0.2]
[1764686287563,13.49289157,132.2,132.19,0.2]
[1764686287776,8.16429652,132.2,132.19,0.2]
[1764686287970,13.49289157,132.2,132.19,0.2]
[1764686288860,12.89289157,132.2,132.19,0.2]
[1764686289060,5.32859505,132.2,132.19,0.2]
[1764686289290,8.80994492,132.26,132.19,0.2]
[1764686289291,0.6,132.27,132.19,8.43456703]
[1764686289458,5.32859505,132.23,132.19,8.43456703]
[1764686289656,5.32859505,132.22,132.19,27.3467389]
[1764686290274,5.32859505,132.22,132.19,0.87]
[1764686290481,5.32859505,132.21,132.19,0.2]
[1764686290791,5.32859505,132.2,132.19,0.2]
[1764686291092,5.32859505,132.2,132.12,0.2]
[1764686291093,8.80994492,132.15,132.12,0.2]
[1764686291257,21.63745905,132.13,132.04,8.24323674]
[1764686291457,12.89861776,132.1,132.04,8.24323674]
[1764686291684,12.89861776,132.1,132.04,0.67]
[1764686291864,12.89861776,132.1,132.05,7.57270639]
[1764686292064,21.43861776,132.1,132.04,8.24337563]
[1764686292277,21.83861776,132.1,132.03,7.57367951]
[1764686292578,27.16721281,132.1,132.01,7.57474542]
[1764686292783,14.53853997,132.09,132.01,0.67]
[1764686293704,22.10913577,132.09,132.08,36.2879564]
[1764686293860,22.10913577,132.09,132.08,27.53501931]
[1764686294062,22.10913577,132.09,132.08,1e-08]
[1764686294464,30.64913577,132.09,132.08,1e-08]
[1764686294665,8.80994492,132.08,132.01,0.67]
[1764686294970,5.32859505,132.04,132.01,0.67]
[1764686295278,5.32859505,132.04,132.01,8.2450435]
[1764686295490,8.54,132.05,132.01,8.2450435]
[1764686295688,5.32859505,132.1,132.04,5.32859505]
[1764686295859,13.86859505,132.1,132.05,5.32859505]
[1764686296059,5.32859505,132.09,132.02,0.67]
[1764686296273,5.32859505,132.08,132.03,5.32859505]
[1764686296564,5.32859505,132.07,132.02,5.99859505]
[1764686296992,5.32859505,132.07,132.03,0.67]
[1764686297291,8.54,132.06,132.03,0.67]
[1764686297486,5.32859505,132.07,132.03,8.24357416]
[1764686297683,8.54,132.06,132.03,8.24357416]
[1764686298076,8.54,132.06,132.03,7.57357416]
[1764686298388,13.86859505,132.06,132.03,0.67]
[1764686298592,7.96832098,132.13,132.05,5.32859505]
[1764686298764,5.32859505,132.08,132.04,0.67]
[1764686298964,8.54,132.08,132.04,0.67]
[1764686299165,8.54,132.08,132.05,5.32859505]
[1764686299571,0.4,132.16,132.07,5.32859505]
[1764686299768,5.32859505,132.12,132.07,5.32859505]
[1764686299997,5.32859505,132.13,132.08,5.99859505]
[1764686300288,0.4,132.16,132.08,5.99859505]
[1764686300289,13.86859505,132.12,132.08,0.67]
[1764686300477,8.54,132.12,132.08,5.99859505]
[1764686300877,8.54,132.12,132.09,8.2405958]
[1764686301272,5.32859505,132.13,132.09,8.2405958]
[1764686301481,5.32859505,132.14,132.1,0.67]
[1764686301783,13.86859505,132.13,132.1,0.67]
[1764686301987,13.86859505,132.13,132.09,26.49708531]
[1764686302184,13.86859505,132.13,132.09,27.16708531]
[1764686302494,5.32859505,132.11,132.09,7.5705958]
[1764686303088,5.32859505,132.1,132.07,26.50037768]
[1764686303282,5.32859505,132.1,132.07,8.24174225]
[1764686303868,5.32859505,132.1,132.07,7.57174225]
[1764686304177,5.32859505,132.08,132.06,7.57220062]
[1764686304484,8.54,132.09,132.03,40.5720196]
[1764686304485,5.32859505,132.07,132.03,19.60456055]
[1764686304687,5.32859505,132.06,132.03,8.24393358]
[1764686305070,8.54,132.06,132.04,8.24307971]
[1764686305570,8.54,132.06,132.04,0.67]
[1764686305774,8.54,132.06,132.03,7.57349716]
[1764686305979,5.32859505,132.05,132.03,7.57349716]
[1764686306384,8.54,132.06,132.03,7.57349716]
[1764686306591,17.49900734,132.06,132.03,7.57349716]
[1764686307125,8.54,132.06,132.02,7.5746099]
[1764686307274,7.57226273,132.07,132.02,8.2446099]
[1764686307471,8.54,132.06,132.02,8.2446099]
[1764686307777,8.54,132.06,132.02,7.5746099]
[1764686307979,8.95900734,132.03,132.02,7.5746099]
[1764686308186,8.54,132.05,132.02,7.5746099]
[1764686308381,17.49900734,132.04,132.02,0.67]
[1764686308582,8.95900734,132.05,132.03,0.67]
[1764686308825,17.49900734,132.06,132.03,0.67]
[1764686309403,8.95900734,132.06,132.03,0.67]
[1764686309600,8.95900734,132.05,132.03,0.67]
[1764686309773,8.95900734,132.04,132.01,0.67]
[1764686309980,8.95900734,132.03,132.01,0.67]
[1764686310507,8.54,132.04,132.01,27.18262599]
[1764686310668,8.54,132.05,132.01,36.14163333]
[1764686310873,8.95900734,132.05,132.02,0.67]
[1764686311477,8.95900734,132.04,132.02,0.67]
[1764686311799,8.95900734,132.05,132.02,0.67]
[1764686311998,8.54,132.06,132.02,0.67]
[1764686311999,8.95900734,132.09,132.04,25.26787134]
[1764686312204,17.49900734,132.09,132.04,25.26787134]
[1764686312506,8.95900734,132.07,132.05,8.24236495]
[1764686312867,8.95900734,132.06,132.05,0.67]
[1764686313070,8.80994492,132.08,132.02,0.7]
[1764686313270,8.95900734,132.06,132.02,8.27457227]
[1764686313474,8.95900734,132.05,132.02,8.27457227]
[1764686313678,8.80994492,132.08,132.02,8.27457227]
[1764686313883,8.95900734,132.04,132.02,8.27457227]
[1764686314083,8.95900734,132.04,132.01,23.88381906]
[1764686314296,8.95900734,132.03,132.01,16.308864]
[1764686314496,7.57346258,132.04,132.0,7.57553205]
[1764686314685,8.95900734,132.02,131.99,0.7]
[1764686315476,35.04517297,132.05,131.95,40.0]
[1764686315477,8.95900734,132.01,131.95,0.2]
[1764686315687,8.95900734,131.99,131.96,0.7]
[1764686316071,8.95900734,132.0,131.96,0.7]
[1764686316322,17.49900734,132.0,131.96,0.7]
[1764686316602,8.95900734,131.99,131.97,7.57747973]
[1764686316972,8.95900734,131.99,131.98,0.7]
[1764686317703,8.95900734,131.99,131.97,7.57747973]
[1764686317996,8.95900734,131.98,131.95,0.9]
[1764686318199,17.49900734,132.0,131.96,0.7]
[1764686318580,8.95900734,131.99,131.96,8.27750297]
[1764686319011,8.54,132.0,131.97,0.7]
[1764686319184,8.95900734,131.99,131.97,0.7]
[1764686319701,35.64200531,132.05,131.97,0.7]
[1764686319893,8.95900734,132.02,131.98,8.95900734]
[1764686320124,8.95900734,132.02,131.99,17.008864]
[1764686320301,8.95900734,132.01,131.99,16.308864]
[1764686320633,17.49900734,132.03,132.01,7.57518369]
[1764686320819,8.95900734,132.03,132.01,7.57518369]
[1764686321010,8.54,132.03,132.01,0.7]
[1764686321314,16.53189639,132.05,132.01,0.7]
[1764686321517,16.11288905,132.05,132.01,0.7]
[1764686321696,8.95900734,132.04,132.01,0.7]
[1764686321892,8.95900734,132.02,131.99,16.308864]
[1764686322204,44.25505661,132.05,131.99,16.308864]
[1764686322205,8.80994492,132.04,131.99,16.988864]
[1764686322403,8.95900734,132.02,132.0,0.68]
[1764686322604,7.5740362,132.03,132.0,0.68]
[1764686323108,16.53304354,132.03,132.0,0.68]
[1764686323316,8.95900734,132.01,131.99,16.308864]
[1764686323521,8.95900734,132.01,131.99,16.988864]
[1764686323897,17.49900734,132.02,131.99,16.988864]
[1764686324209,16.53419103,132.01,131.99,16.988864]
[1764686325300,7.57518369,132.01,131.99,16.988864]
[1764686326216,26.50966889,132.03,132.0,0.68]
[1764686326409,35.04966889,132.03,132.0,0.68]
[1764686326613,44.00867623,132.03,132.0,0.68]
[1764686328629,8.95900734,132.01,131.96,0.68]
[1764686328833,8.95900734,131.99,131.98,16.308864]
[1764686329120,8.54,132.01,131.98,16.308864]
[1764686329317,8.54,132.01,131.99,0.68]
[1764686329825,35.46867623,132.03,131.99,0.68]
[1764686330004,7.57518369,132.01,131.99,0.68]
[1764686331129,16.53419103,132.01,131.99,16.988864]
[1764686331325,16.53419103,132.01,131.99,16.308864]
[1764686331326,35.47215027,132.01,131.99,16.308864]
[1764686331505,26.51314293,132.01,131.97,16.988864]
[1764686331703,8.95900734,131.99,131.97,0.68]
[1764686331924,26.51314293,132.01,131.98,0.68]
[1764686332131,8.54,132.0,131.98,0.68]
[1764686333232,17.49900734,132.0,131.98,0.68]
[1764686334041,8.54,131.99,131.98,0.68]
[1764686334236,16.11633154,131.99,131.98,0.68]
[1764686334709,7.57633154,131.99,131.98,0.68]
[1764686334910,16.11633154,131.99,131.98,0.68]
[1764686335324,25.07533888,131.99,131.98,0.68]
[1764686335629,16.53533888,131.99,131.95,16.508864]
[1764686335933,16.11633154,131.99,131.96,0.68]
[1764686336235,0.4,132.03,131.96,0.68]
[1764686336236,7.57288905,132.05,132.01,16.308864]
[1764686336536,16.53189639,132.05,132.02,0.68]
[1764686336826,8.95900734,132.04,132.02,0.68]
[1764686337043,8.95900734,132.03,132.01,16.308864]
[1764686337249,8.95900734,132.02,132.0,16.988864]
[1764686337411,8.95900734,132.03,132.0,16.988864]
[1764686337611,8.95900734,132.03,132.01,0.68]
[1764686338132,8.95900734,132.05,132.01,0.68]
[1764686338428,37.85762562,132.08,132.03,8.95900734]
[1764686338429,8.95900734,132.08,132.03,8.95900734]
[1764686338635,25.07099864,132.07,132.02,8.95900734]
[1764686338811,25.07099864,132.07,132.02,9.63900734]
[1764686339013,8.54,132.07,132.03,9.63900734]
[1764686339329,8.54,132.08,132.04,25.26787134]
[1764686339511,8.54,132.08,132.04,25.94787134]
[1764686339714,17.49900734,132.08,132.05,0.68]
[1764686339935,8.95900734,132.07,132.05,16.988864]
[1764686340308,25.07102424,132.07,132.05,16.988864]
[1764686340508,7.57135622,132.08,132.06,0.68]
[1764686341748,27.88312519,132.11,132.06,0.68]
[1764686341933,8.54,132.1,132.06,9.63900734]
[1764686342107,7.5694497,132.11,132.09,8.95900734]
[1764686342435,7.56887677,132.12,132.09,8.95900734]
[1764686342608,8.95900734,132.1,132.06,16.308864]
[1764686342811,8.95900734,132.07,132.06,16.308864]
[1764686343012,8.95900734,132.08,132.06,16.988864]
[1764686343825,8.95900734,132.07,132.05,16.308864]
[1764686344016,8.95900734,132.08,132.05,16.308864]
[1764686344212,7.57174225,132.07,132.05,16.308864]
[1764686344417,7.57002271,132.1,132.06,0.68]
[1764686344618,16.11002271,132.1,132.07,8.95900734]
[1764686344818,16.11002271,132.1,132.08,0.68]
[1764686345251,16.52903005,132.1,132.07,0.68]
[1764686345711,7.57002271,132.1,132.07,0.68]
[1764686345911,26.49507948,132.1,132.07,0.68]
[1764686346144,7.57002271,132.1,132.07,9.63900734]
[1764686346380,16.10887677,132.12,132.09,8.95900734]
[1764686346638,7.56887677,132.12,132.09,8.95900734]
[1764686346843,7.56887677,132.12,132.1,0.68]
[1764686347221,16.10809606,132.14,132.1,9.63900734]
[1764686347422,25.0671034,132.14,132.1,0.68]
[1764686347621,25.0671034,132.14,132.11,0.68]
[1764686347827,8.95900734,132.13,132.11,0.68]
[1764686348446,7.56847381,132.13,132.11,0.68]
[1764686349516,8.54,132.15,132.11,0.68]
[1764686349517,7.5673836,132.15,132.12,8.95900734]
[1764686349851,8.54,132.17,132.14,16.308864]
[1764686350151,8.54,132.17,132.13,25.26787134]
[1764686350354,8.54,132.18,132.14,9.63900734]
[1764686350558,17.49900734,132.18,132.14,0.68]
[1764686350732,17.49900734,132.18,132.13,25.26787134]
[1764686350934,17.49900734,132.18,132.15,0.68]
[1764686351457,16.52559329,132.16,132.13,16.988864]
[1764686351653,7.56658595,132.16,132.14,0.7]
[1764686352042,8.95900734,132.15,132.13,0.7]
[1764686352239,17.49900734,132.14,132.11,0.7]
[1764686352445,8.54,132.14,132.11,9.65900734]
[1764686352643,8.95900734,132.15,132.11,0.7]
[1764686352863,16.52559329,132.16,132.12,9.65900734]
[1764686353043,16.52559329,132.16,132.12,0.7]
[1764686353361,35.44205818,132.16,132.13,0.7]
[1764686353565,9.20994492,132.15,132.08,0.7]
[1764686353743,17.49900734,132.14,132.09,9.65900734]
[1764686353944,8.54,132.14,132.1,8.95900734]
[1764686354147,8.54,132.14,132.1,9.65900734]
[1764686354454,17.49900734,132.14,132.11,0.7]
[1764686354968,26.48305084,132.16,132.11,0.7]
[1764686355261,8.95900734,132.16,132.11,25.96787134]
[1764686355447,8.95900734,132.16,132.11,33.53684484]
[1764686355650,16.52564416,132.16,132.12,0.7]
[1764686355954,17.49900734,132.19,132.14,8.95900734]
[1764686356145,8.54,132.19,132.14,8.95900734]
[1764686356357,17.49900734,132.19,132.15,0.7]
[1764686357260,8.95900734,132.18,132.15,0.7]
[1764686357466,7.56601346,132.17,132.15,0.7]
[1764686357681,16.5250208,132.17,132.13,0.7]
[1764686357846,17.47900734,132.16,132.12,0.7]
[1764686358047,8.52,132.17,132.13,8.95900734]
[1764686358473,8.52,132.17,132.14,0.7]
[1764686359258,17.47900734,132.17,132.14,0.7]
[1764686359458,7.56715853,132.15,132.11,32.41827167]
[1764686359774,7.56715853,132.15,132.13,0.7]
[1764686359945,16.52562366,132.16,132.13,0.7]
[1764686360150,7.56661632,132.16,132.13,0.7]
[1764686360374,16.52562366,132.16,132.13,0.7]
[1764686360788,8.95900734,132.15,132.11,23.87827167]
[1764686360961,8.95900734,132.14,132.09,37.10474049]
[1764686361165,17.47900734,132.14,132.1,0.7]
[1764686361591,8.95900734,132.11,132.06,0.7]
[1764686361752,8.95900734,132.08,132.03,0.7]
[1764686361950,8.95900734,132.05,132.0,8.95900734]
[1764686362166,8.95900734,132.05,132.03,16.308864]
[1764686362455,8.95900734,132.04,131.99,0.7]
[1764686362668,8.95900734,132.03,131.99,0.7]